fUSD/lending_fUSD_20250530
["ID","MTS","AMOUNT","RATE_DAILY","PERIOD"]
[363251260,1748649038456,-165.0,0.00024932,7]
[363251261,1748649038466,-258.0,0.00024932,7]
[363251264,1748649038475,-829.07,0.00024958,2]
[363251265,1748649038485,-829.07,0.00024958,2]
[363251268,1748649038495,-829.07,0.00024958,2]
[363251270,1748649038504,-829.07,0.00024958,2]
[363251272,1748649038513,-829.07,0.00024958,2]
[363251273,1748649038522,-829.07,0.00024958,2]
[363251275,1748649038531,-829.07,0.00024958,2]
[363251277,1748649038540,-829.07,0.00024958,2]
[363251279,1748649038549,-829.07,0.00024958,2]
[363251282,1748649038560,-829.07,0.00024958,2]
[363251284,1748649038569,-829.07,0.00024958,2]
[363251286,1748649038578,-829.07,0.00024958,2]
[363251304,1748649038830,-829.07,0.00024958,2]
[363251305,1748649038844,-829.07,0.00024958,2]
[363251306,1748649038853,-829.07,0.00024958,2]
[363251307,1748649038863,-829.07,0.00024958,2]
[363251309,1748649038871,-829.07,0.00024958,2]
[363251311,1748649038880,-829.07,0.00024958,2]
[363251313,1748649038889,-829.07,0.00024958,2]
[363251315,1748649038898,-829.07,0.00024958,2]
[363251317,1748649038907,-829.07,0.00024958,2]
[363251319,1748649038915,-829.07,0.00024958,2]
[363251321,1748649038924,-829.07,0.00024958,2]
[363251323,1748649038933,-829.22925622,0.00024958,2]
[363251325,1748649038942,-400.0,0.00025,2]
[363251327,1748649038951,-165.0,0.00025,7]
[363251329,1748649038960,-258.0,0.00025,7]
[363251331,1748649038968,-500.0,0.00025044,2]
[363251333,1748649038977,-207.0,0.00025091,4]
[363251335,1748649038986,-600.0,0.000251,2]
[363251337,1748649038995,-600.0,0.00025114,2]
[363251339,1748649039004,-500.0,0.00025131,2]
[363251341,1748649039013,-150.0,0.00025144,2]
[363251343,1748649039022,-150.0,0.00025144,2]
[363251345,1748649039030,-150.0,0.00025144,2]
[363251347,1748649039039,-941.0,0.00025144,2]
[363251349,1748649039048,-1314.0,0.00025144,2]
[363251350,1748649039059,-1155.0,0.00025144,2]
[363251353,1748649039069,-801.0,0.00025144,2]
[363251355,1748649039077,-634.0,0.00025144,2]
[363251357,1748649039086,-924.0,0.00025144,2]
[363251359,1748649039095,-1268.0,0.00025144,2]
[363251361,1748649039104,-1466.0,0.00025144,2]
[363251363,1748649039112,-556.0,0.00025144,2]
[363251365,1748649039121,-588.0,0.00025144,2]
[363251366,1748649039130,-882.0,0.00025144,2]
[363251368,1748649039139,-180.631,0.00025144,2]
[363251371,1748649039148,-284.369,0.00025144,2]
[363251373,1748649039157,-2190.0,0.00025144,2]
[363251374,1748649039165,-4068.0,0.00025144,2]
[363251377,1748649039174,-6929.0,0.00025144,2]
[363251379,1748649039183,-500.0,0.00025151,2]
[363251380,1748649039192,-1300.0,0.00025151,2]
[363251383,1748649039201,-500.0,0.00025156,2]
[363251385,1748649039210,-150.0,0.00025171,2]
[363251387,1748649039219,-150.0,0.00025171,2]
[363251389,1748649039228,-150.0,0.00025171,2]
[363251391,1748649039237,-600.0,0.00025175,2]
[363251393,1748649039246,-500.0,0.00025183,2]
[363251395,1748649039254,-290.34695293,0.00025199,2]
[363251397,1748649039264,-273.31378554,0.00025199,2]
[363251399,1748649039273,-200.0,0.00025199,2]
[363251401,1748649039282,-800.0,0.000252,9]
[363251403,1748649039291,-800.0,0.000252,9]
[363251405,1748649039300,-800.0,0.000252,9]
[363251407,1748649039310,-800.0,0.000252,9]
[363251409,1748649039319,-800.0,0.000252,9]
[363251411,1748649039328,-800.0,0.000252,9]
[363251413,1748649039337,-800.0,0.000252,9]
[363251415,1748649039346,-800.0,0.000252,9]
[363251417,1748649039355,-800.0,0.000252,9]
[363251419,1748649039364,-800.0,0.000252,9]
[363251421,1748649039379,-600.0,0.00025229,2]
[363251423,1748649039389,-3641.05733021,0.00025245,12]
[363251425,1748649039397,-500.0,0.00025296,2]
[363251427,1748649039406,-280.0,0.000253,10]
[363251429,1748649039415,-500.0,0.00025316,2]
[363251431,1748649039425,-600.0,0.00025348,2]
[363251433,1748649039434,-500.0,0.00025354,2]
[363251435,1748649039443,-215.0738,0.00025377,2]
[363251437,1748649039453,-500.0,0.00025382,2]
[363251439,1748649039462,-600.0,0.0002539,2]
[363251441,1748649039471,-600.0,0.00025392,2]
[363251443,1748649039480,-151.0,0.000254,7]
[363251445,1748649039489,-600.0,0.00025448,2]
[363251447,1748649039499,-1300.0,0.00025459,2]
[363251449,1748649039508,-600.0,0.00025477,2]
[363251451,1748649039517,-500.0,0.00025479,2]
[363251453,1748649039526,-500.0,0.00025481,2]
[363251455,1748649039535,-1300.0,0.00025488,2]
[363251457,1748649039545,-500.0,0.00025505,2]
[363251458,1748649039555,-500.0,0.00025525,2]
[363251460,1748649039564,-156.587,0.00025529,2]
[363251462,1748649039573,-600.0,0.00025549,2]
[363251465,1748649039583,-600.0,0.00025554,2]
[363251467,1748649039592,-600.0,0.00025556,2]
[363251468,1748649039601,-500.0,0.00025592,2]
[363251470,1748649039610,-500.0,0.00025597,2]
[363251472,1748649039619,-500.0,0.00025611,2]
[363251475,1748649039628,-151.7451015,0.00025645,2]
[363251477,1748649039638,-5834.81768525,0.00025682,2]
[363251479,1748649039647,-500.0,0.00025697,2]
[363251481,1748649039656,-150.0,0.0002574,7]
[363251483,1748649039665,-600.0,0.00025741,2]
[363251485,1748649039674,-564.81404087,0.00025759,2]
[363251487,1748649039683,-306.26495963,0.00025766,2]
[363251489,1748649039691,-500.0,0.00025769,2]
[363251491,1748649039701,-500.0,0.00025771,2]
[363251493,1748649039710,-500.0,0.00025787,2]
[363251495,1748649039719,-180.13,0.0002583,2]
[363251497,1748649039727,-1076.80876035,0.00025869,10]
[363251499,1748649039736,-93227.1246,0.0002587,2]
[363251501,1748649039745,-16357.3482198,0.0002587,2]
[363251502,1748649039755,-165.0,0.0002589,7]
[363251505,1748649039764,-258.0,0.0002589,7]
[363251507,1748649039773,-1300.0,0.00025909,2]
[363251509,1748649039782,-500.0,0.00025912,2]
[363251511,1748649039791,-500.0,0.00025924,2]
[363251513,1748649039800,-600.0,0.00025928,2]
[363251515,1748649039811,-27293.626963,0.0002596,3]
[363251517,1748649039819,-3641.05733021,0.00025969,14]
[363251519,1748649039828,-1130.19283643,0.0002597,2]
[363251521,1748649039837,-1035.70717153,0.0002597,2]
[363251524,1748649039847,-1075.82938667,0.0002597,2]
[363251527,1748649039855,-1014.10461796,0.0002597,2]
[363251529,1748649039864,-1050.56347492,0.0002597,2]
[363251531,1748649039874,-1149.80559126,0.0002597,2]
[363251534,1748649039884,-1086.71640008,0.0002597,2]
[363251537,1748649039894,-1035.44531323,0.0002597,2]
[363251539,1748649039904,-1030.6690373,0.0002597,2]
[363251541,1748649039913,-1052.92559663,0.0002597,2]
[363251543,1748649039922,-1047.09569103,0.0002597,2]
[363251545,1748649039932,-1069.90065985,0.0002597,2]
[363251547,1748649039941,-1095.55863625,0.0002597,2]
[363251550,1748649039950,-1072.82566723,0.0002597,2]
[363251552,1748649039960,-1086.60468561,0.0002597,2]
[363251554,1748649039969,-1116.27145409,0.0002597,2]
[363251556,1748649039978,-1063.52145241,0.0002597,2]
[363251558,1748649039987,-1031.04108849,0.0002597,2]
[363251560,1748649039996,-1027.36325744,0.0002597,2]
[363251562,1748649040006,-168.10584233,0.00026007,2]
[363251564,1748649040015,-600.0,0.00026016,2]
[363251567,1748649040025,-600.0,0.00026032,2]
[363251569,1748649040035,-1300.0,0.00026043,2]
[363251571,1748649040044,-1300.0,0.00026044,2]
[363251573,1748649040055,-189.38,0.00026046,2]
[363251575,1748649040064,-600.0,0.00026111,2]
[363251577,1748649040073,-150.094,0.0002612,12]
[363251578,1748649040082,-2645.697,0.0002612,12]
[363251580,1748649040091,-600.0,0.00026136,2]
[363251582,1748649040101,-600.0,0.00026156,2]
[363251584,1748649040110,-500.0,0.00026165,7]
[363251587,1748649040119,-500.0,0.00026165,7]
[363251588,1748649040129,-500.0,0.00026165,7]
[363251591,1748649040138,-500.0,0.00026165,7]
[363251592,1748649040147,-534.7,0.00026165,7]
[363251595,1748649040157,-3292.0,0.00026194,2]
[363251596,1748649040166,-237.0,0.000262,2]
[363251598,1748649040176,-375.0,0.000262,2]
[363251600,1748649040186,-2000.0,0.0002623,2]
[363251603,1748649040195,-500.0,0.00026236,2]
[363251604,1748649040205,-1300.0,0.00026273,2]
[363251606,1748649040214,-600.0,0.00026278,2]
[363251608,1748649040223,-500.0,0.000263,2]
[363251610,1748649040233,-500.0,0.00026303,2]
[363251612,1748649040242,-600.0,0.0002632,2]
[363251614,1748649040252,-600.0,0.00026324,2]
[363251617,1748649040261,-500.0,0.00026341,2]
[363251618,1748649040270,-27293.626963,0.00026359,3]
[363251620,1748649040280,-500.0,0.00026363,2]
[363251622,1748649040289,-1300.0,0.00026369,2]
[363251624,1748649040298,-218.97566468,0.00026369,2]
[363251626,1748649040309,-500.0,0.0002639,2]
[363251628,1748649040318,-500.0,0.00026395,2]
[363251631,1748649040328,-500.0,0.00026398,2]
[363251632,1748649040337,-600.0,0.00026405,2]
[363251634,1748649040346,-500.0,0.00026415,2]
[363251637,1748649040357,-1300.0,0.00026419,2]
[363251639,1748649040367,-250.0,0.00026425,2]
[363251641,1748649040378,-600.0,0.00026469,2]
[363251643,1748649040387,-200.0,0.00026478,2]
[363251645,1748649040396,-600.0,0.00026494,2]
[363251647,1748649040406,-1300.0,0.00026496,2]
[363251649,1748649040416,-23510.7705819,0.000265,2]
[363251651,1748649040426,-151.0,0.000265,7]
[363251653,1748649040435,-289.813884,0.000265,7]
[363251655,1748649040444,-289.813884,0.000265,7]
[363251657,1748649040455,-151.0,0.000265,7]
[363251659,1748649040464,-151.0,0.000265,7]
[363251661,1748649040473,-153.0,0.000265,3]
[363251663,1748649040483,-153.0,0.000265,3]
[363251665,1748649040492,-158.14575428,0.000265,3]
[363251667,1748649040501,-1192.0,0.000265,3]
[363251669,1748649040510,-1192.0,0.000265,3]
[363251671,1748649040519,-1165.16530932,0.000265,3]
[363251673,1748649040528,-153.0,0.000265,3]
[363251675,1748649040537,-186.0,0.000265,3]
[363251677,1748649040547,-5834.81768525,0.00026506,2]
[363251679,1748649040556,-600.0,0.0002652,2]
[363251681,1748649040566,-1300.0,0.00026559,2]
[363251683,1748649040576,-890.452232,0.0002658,6]
[363251685,1748649040585,-16357.3482198,0.00026581,2]
[363251687,1748649040595,-862.0,0.00026591,2]
[363251689,1748649040604,-189.01548399,0.00026627,2]
[363251691,1748649040614,-500.0,0.00026635,2]
[363251694,1748649040623,-600.0,0.00026645,2]
[363251696,1748649040633,-411.69,0.00026676,2]
[363251697,1748649040642,-1300.0,0.00026678,2]
[363251700,1748649040651,-3641.05733021,0.00026693,15]
[363251701,1748649040660,-27293.626963,0.00026702,3]
[363251704,1748649040670,-614.60909705,0.00026721,2]
[363251705,1748649040679,-180.13,0.00026731,2]
[363251707,1748649040690,-1000.0,0.00026741,2]
[363251709,1748649040699,-223.0315306,0.00026746,2]
[363251712,1748649040709,-1300.0,0.00026784,2]
[363251714,1748649040718,-600.0,0.00026801,2]
[363251716,1748649040728,-600.0,0.00026815,2]
[363251717,1748649040738,-600.0,0.00026822,2]
[363251720,1748649040747,-151.0,0.00026833,7]
[363251721,1748649040756,-500.0,0.00026836,2]
[363251723,1748649040766,-207.0,0.00026836,7]
[363251725,1748649040775,-1300.0,0.0002685,2]
[363251728,1748649040784,-630.75,0.0002685,2]
[363251729,1748649040793,-500.0,0.00026852,2]
[363251732,1748649040803,-1300.0,0.00026874,2]
[363251733,1748649040812,-16239.56649514,0.00026889,2]
[363251736,1748649040822,-600.0,0.00026892,2]
[363251738,1748649040832,-162.380719,0.00026898,2]
[363251740,1748649040841,-1156.41848616,0.00026899,2]
[363251742,1748649040850,-500.0,0.000269,10]
[363251744,1748649040859,-150.0,0.00026902,2]
[363251746,1748649040869,-150.0,0.00026913,2]
[363251748,1748649040878,-500.0,0.00026935,2]
[363251750,1748649040886,-212.87827641,0.00026946,2]
[363251752,1748649040895,-150.0,0.00026975,2]
[363251754,1748649040903,-27293.626963,0.0002699,3]
[363251756,1748649040913,-24583.816933,0.0002699,3]
[363251758,1748649040922,-150.0,0.00026999,2]
[363251760,1748649040931,-302.76,0.00027,2]
[363251762,1748649040940,-2530.300888,0.00027,2]
[363251764,1748649040948,-10000.0,0.00027,30]
[363251766,1748649040957,-250.0,0.00027,2]
[363251768,1748649040966,-1892.25644408,0.00027,14]
[363251770,1748649040976,-8876.27636903,0.00027,10]
[363251772,1748649040984,-1002.882682,0.00027,2]
[363251774,1748649040994,-249.53928037,0.00027,2]
[363251776,1748649041003,-1647.53710217,0.00027,120]
[363251778,1748649041012,-450.0,0.00027,2]
[363251780,1748649041021,-382.46343273,0.00027003,2]
[363251782,1748649041029,-150.0,0.00027021,2]
[363251784,1748649041039,-600.0,0.00027023,2]
[363251786,1748649041047,-5000.0,0.00027023,2]
[363251788,1748649041057,-600.0,0.00027035,2]
[363251790,1748649041066,-151.0,0.00027066,7]
[363251792,1748649041076,-151.0,0.00027066,7]
[363251794,1748649041085,-151.0,0.00027066,7]
[363251796,1748649041094,-151.0,0.00027066,7]
[363251798,1748649041103,-151.0,0.00027066,7]
[363251800,1748649041114,-159.0,0.000271,16]
[363251802,1748649041123,-517.25392301,0.000271,7]
[363251804,1748649041132,-500.0,0.0002711,2]
[363251806,1748649041141,-27293.626963,0.00027113,3]
[363251807,1748649041149,-24583.816933,0.00027113,3]
[363251809,1748649041158,-150.0,0.00027122,2]
[363251811,1748649041166,-257.0084232,0.00027123,2]
[363251813,1748649041176,-384.0,0.00027123,2]
[363251815,1748649041186,-384.0,0.00027123,2]
[363251817,1748649041196,-384.0,0.00027123,2]
[363251819,1748649041205,-384.0,0.00027123,2]
[363251821,1748649041214,-384.0,0.00027123,2]
[363251823,1748649041223,-384.0,0.00027123,2]
[363251825,1748649041232,-384.0,0.00027123,2]
[363251827,1748649041241,-384.0,0.00027123,2]
[363251830,1748649041251,-384.0,0.00027123,2]
[363251831,1748649041467,-384.0,0.00027123,2]
[363251833,1748649041477,-384.0,0.00027123,2]
[363251835,1748649041485,-384.0,0.00027123,2]
[363251837,1748649041495,-384.0,0.00027123,2]
[363251839,1748649041505,-384.0,0.00027123,2]
[363251841,1748649041515,-384.0,0.00027123,2]
[363251843,1748649041524,-384.0,0.00027123,2]
[363251845,1748649041533,-384.0,0.00027123,2]
[363251847,1748649041542,-384.0,0.00027123,2]
[363251849,1748649041551,-384.0,0.00027123,2]
[363251851,1748649041562,-181.0,0.00027123,2]
[363251853,1748649041571,-181.0,0.00027123,2]
[363251854,1748649041580,-181.0,0.00027123,2]
[363251855,1748649041589,-181.0,0.00027123,2]
[363251856,1748649041598,-181.0,0.00027123,2]
[363251857,1748649041607,-181.0,0.00027123,2]
[363251858,1748649041617,-181.0,0.00027123,2]
[363251859,1748649041626,-181.0,0.00027123,2]
[363251860,1748649041635,-181.0,0.00027123,2]
[363251861,1748649041644,-181.0,0.00027123,2]
[363251862,1748649041653,-181.0,0.00027123,2]
[363251863,1748649041663,-181.0,0.00027123,2]
[363251864,1748649041673,-181.0,0.00027123,2]
[363251865,1748649041682,-181.0,0.00027123,2]
[363251866,1748649041692,-181.0,0.00027123,2]
[363251867,1748649041701,-181.0,0.00027123,2]
[363251868,1748649041710,-181.0,0.00027123,2]
[363251869,1748649041718,-181.0,0.00027123,2]
[363251870,1748649041727,-181.0,0.00027123,2]
[363251871,1748649041735,-181.0,0.00027123,2]
[363251872,1748649041744,-181.0,0.00027123,2]
[363251873,1748649041753,-181.0,0.00027123,2]
[363251874,1748649041762,-181.0,0.00027123,2]
[363251875,1748649041771,-181.0,0.00027123,2]
[363251876,1748649041779,-181.0,0.00027123,2]
[363251877,1748649041788,-181.0,0.00027123,2]
[363251878,1748649041797,-181.0,0.00027123,2]
[363251879,1748649042000,-181.0,0.00027123,2]
[363251880,1748649042010,-181.0,0.00027123,2]
[363251882,1748649042019,-181.0,0.00027123,2]
[363251884,1748649042027,-181.0,0.00027123,2]
[363251886,1748649042035,-181.0,0.00027123,2]
[363251888,1748649042044,-181.0,0.00027123,2]
[363251889,1748649042053,-181.0,0.00027123,2]
[363251890,1748649042062,-181.0,0.00027123,2]
[363251891,1748649042071,-181.0,0.00027123,2]
[363251892,1748649042081,-181.0,0.00027123,2]
[363251893,1748649042090,-181.0,0.00027123,2]
[363251894,1748649042099,-181.0,0.00027123,2]
[363251895,1748649042108,-181.0,0.00027123,2]
[363251896,1748649042118,-181.0,0.00027123,2]
[363251897,1748649042127,-181.0,0.00027123,2]
[363251898,1748649042136,-181.0,0.00027123,2]
[363251899,1748649042146,-181.0,0.00027123,2]
[363251900,1748649042155,-181.0,0.00027123,2]
[363251901,1748649042165,-181.0,0.00027123,2]
[363251902,1748649042174,-181.0,0.00027123,2]
[363251903,1748649042184,-181.0,0.00027123,2]
[363251904,1748649042193,-181.0,0.00027123,2]
[363251905,1748649042204,-181.0,0.00027123,2]
[363251906,1748649042213,-181.0,0.00027123,2]
[363251907,1748649042222,-181.0,0.00027123,2]
[363251908,1748649042231,-181.0,0.00027123,2]
[363251909,1748649042241,-181.0,0.00027123,2]
[363251910,1748649042251,-181.0,0.00027123,2]
[363251911,1748649042260,-181.0,0.00027123,2]
[363251912,1748649042269,-181.0,0.00027123,2]
[363251913,1748649042279,-181.0,0.00027123,2]
[363251914,1748649042291,-181.0,0.00027123,2]
[363251915,1748649042300,-181.0,0.00027123,2]
[363251916,1748649042313,-181.0,0.00027123,2]
[363251917,1748649042323,-181.0,0.00027123,2]
[363251918,1748649042333,-181.0,0.00027123,2]
[363251919,1748649042342,-181.0,0.00027123,2]
[363251920,1748649042352,-181.0,0.00027123,2]
[363251921,1748649042361,-181.0,0.00027123,2]
[363251922,1748649042373,-181.0,0.00027123,2]
[363251923,1748649042388,-181.0,0.00027123,2]
[363251924,1748649042399,-181.0,0.00027123,2]
[363251925,1748649042410,-181.0,0.00027123,2]
[363251926,1748649042421,-181.0,0.00027123,2]
[363251927,1748649042431,-181.0,0.00027123,2]
[363251928,1748649042442,-181.0,0.00027123,2]
[363251929,1748649042452,-181.0,0.00027123,2]
[363251930,1748649042462,-181.0,0.00027123,2]
[363251931,1748649042471,-181.0,0.00027123,2]
[363251932,1748649042480,-181.0,0.00027123,2]
[363251933,1748649042490,-181.0,0.00027123,2]
[363251934,1748649042499,-181.0,0.00027123,2]
[363251935,1748649042508,-181.0,0.00027123,2]
[363251936,1748649042517,-181.0,0.00027123,2]
[363251937,1748649042526,-181.0,0.00027123,2]
[363251938,1748649042535,-181.0,0.00027123,2]
[363251939,1748649042543,-181.0,0.00027123,2]
[363251940,1748649042553,-181.0,0.00027123,2]
[363251941,1748649042570,-181.0,0.00027123,2]
[363251942,1748649042579,-181.0,0.00027123,2]
[363251943,1748649042589,-181.0,0.00027123,2]
[363251944,1748649042599,-181.0,0.00027123,2]
[363251945,1748649042608,-181.0,0.00027123,2]
[363251946,1748649042618,-181.0,0.00027123,2]
[363251947,1748649042628,-181.0,0.00027123,2]
[363251948,1748649042638,-181.0,0.00027123,2]
[363251949,1748649042647,-181.0,0.00027123,2]
[363251950,1748649042656,-181.0,0.00027123,2]
[363251951,1748649042665,-181.0,0.00027123,2]
[363251952,1748649042675,-181.0,0.00027123,2]
[363251953,1748649042683,-158.0,0.00027123,2]
[363251954,1748649042693,-158.0,0.00027123,2]
[363251955,1748649042702,-158.0,0.00027123,2]
[363251956,1748649042711,-158.0,0.00027123,2]
[363251957,1748649042720,-158.0,0.00027123,2]
[363251958,1748649042729,-158.0,0.00027123,2]
[363251959,1748649042737,-158.0,0.00027123,2]
[363251960,1748649042746,-158.0,0.00027123,2]
[363251961,1748649042755,-158.0,0.00027123,2]
[363251962,1748649042763,-158.0,0.00027123,2]
[363251964,1748649042772,-158.0,0.00027123,2]
[363251966,1748649042781,-158.0,0.00027123,2]
[363251967,1748649042791,-158.0,0.00027123,2]
[363251968,1748649042800,-158.0,0.00027123,2]
[363251970,1748649042814,-158.0,0.00027123,2]
[363251971,1748649042822,-158.0,0.00027123,2]
[363251972,1748649042831,-158.0,0.00027123,2]
[363251974,1748649042840,-158.0,0.00027123,2]
[363251976,1748649042849,-158.0,0.00027123,2]
[363251977,1748649042858,-158.0,0.00027123,2]
[363251978,1748649042867,-158.0,0.00027123,2]
[363251979,1748649042876,-158.0,0.00027123,2]
[363251980,1748649042885,-158.0,0.00027123,2]
[363251981,1748649042894,-158.0,0.00027123,2]
[363251982,1748649042903,-158.0,0.00027123,2]
[363251983,1748649042912,-158.0,0.00027123,2]
[363251984,1748649042921,-158.0,0.00027123,2]
[363251985,1748649042930,-158.0,0.00027123,2]
[363251986,1748649042939,-158.0,0.00027123,2]
[363251987,1748649042947,-158.0,0.00027123,2]
[363251988,1748649042956,-158.0,0.00027123,2]
[363251989,1748649042966,-158.0,0.00027123,2]
[363251990,1748649042975,-158.0,0.00027123,2]
[363251991,1748649042985,-158.0,0.00027123,2]
[363251992,1748649042995,-158.0,0.00027123,2]
[363251993,1748649043004,-158.0,0.00027123,2]
[363251994,1748649043013,-158.0,0.00027123,2]
[363251995,1748649043023,-158.0,0.00027123,2]
[363251996,1748649043032,-158.0,0.00027123,2]
[363251997,1748649043042,-158.0,0.00027123,2]
[363251998,1748649043051,-158.0,0.00027123,2]
[363251999,1748649043063,-158.0,0.00027123,2]
[363252000,1748649043072,-158.0,0.00027123,2]
[363252001,1748649043082,-158.0,0.00027123,2]
[363252002,1748649043091,-158.0,0.00027123,2]
[363252003,1748649043101,-158.0,0.00027123,2]
[363252004,1748649043111,-158.0,0.00027123,2]
[363252005,1748649043120,-158.0,0.00027123,2]
[363252006,1748649043130,-158.0,0.00027123,2]
[363252007,1748649043139,-158.0,0.00027123,2]
[363252008,1748649043148,-158.0,0.00027123,2]
[363252009,1748649043158,-212.0,0.00027123,2]
[363252010,1748649043167,-212.0,0.00027123,2]
[363252011,1748649043176,-212.0,0.00027123,2]
[363252012,1748649043186,-189.0,0.00027123,2]
[363252013,1748649043195,-189.0,0.00027123,2]
[363252014,1748649043204,-189.0,0.00027123,2]
[363252015,1748649043214,-189.0,0.00027123,2]
[363252016,1748649043223,-189.0,0.00027123,2]
[363252017,1748649043232,-189.0,0.00027123,2]
[363252018,1748649043242,-189.0,0.00027123,2]
[363252019,1748649043251,-189.0,0.00027123,2]
[363252020,1748649043260,-189.0,0.00027123,2]
[363252021,1748649043270,-189.0,0.00027123,2]
[363252022,1748649043279,-189.0,0.00027123,2]
[363252023,1748649043288,-189.0,0.00027123,2]
[363252024,1748649043298,-189.0,0.00027123,2]
[363252025,1748649043309,-189.0,0.00027123,2]
[363252026,1748649043318,-189.0,0.00027123,2]
[363252027,1748649043327,-189.0,0.00027123,2]
[363252028,1748649043337,-220.0,0.00027123,2]
[363252029,1748649043346,-220.0,0.00027123,2]
[363252030,1748649043355,-220.0,0.00027123,2]
[363252031,1748649043365,-220.0,0.00027123,2]
[363252032,1748649043377,-220.0,0.00027123,2]
[363252033,1748649043387,-220.0,0.00027123,2]
[363252034,1748649043397,-220.0,0.00027123,2]
[363252035,1748649043406,-220.0,0.00027123,2]
[363252036,1748649043415,-220.0,0.00027123,2]
[363252037,1748649043426,-220.0,0.00027123,2]
[363252038,1748649043435,-220.0,0.00027123,2]
[363252039,1748649043444,-220.0,0.00027123,2]
[363252040,1748649043454,-220.0,0.00027123,2]
[363252041,1748649043464,-220.0,0.00027123,2]
[363252042,1748649043474,-163.05,0.00027123,2]
[363252043,1748649043484,-24583.816933,0.00027127,3]
[363252044,1748649043494,-27293.626963,0.00027137,3]
[363252045,1748649043503,-300.0,0.00027141,2]
[363252046,1748649043513,-24583.816933,0.00027146,3]
[363252047,1748649043523,-27293.626963,0.00027147,3]
[363252048,1748649043532,-24583.816933,0.00027147,3]
[363252049,1748649043542,-192.9661133,0.0002715,2]
[363252050,1748649043551,-27293.626963,0.00027156,3]
[363252051,1748649043563,-24583.816933,0.00027156,3]
[363252052,1748649043573,-684.2257233,0.00027157,2]
[363252053,1748649043582,-1066.091746,0.00027157,2]
[363252054,1748649043592,-54688.7637007,0.00027157,2]
[363252055,1748649043602,-500.0,0.00027165,3]
[363252056,1748649043611,-500.0,0.00027165,3]
[363252057,1748649043621,-538.38964601,0.00027165,3]
[363252058,1748649043631,-500.0,0.00027165,3]
[363252059,1748649043640,-500.0,0.00027165,3]
[363252060,1748649043650,-500.0,0.00027165,3]
[363252061,1748649043660,-1076.80876036,0.00027165,10]
[363252062,1748649043670,-151.0,0.00027166,7]
[363252063,1748649043680,-151.0,0.00027166,7]
[363252064,1748649043689,-289.813884,0.00027166,7]
[363252065,1748649043699,-289.813884,0.00027166,7]
[363252066,1748649043709,-151.0,0.00027166,7]
[363252067,1748649043718,-151.0,0.00027166,7]
[363252068,1748649043727,-23574.1789541,0.00027166,2]
[363252069,1748649043737,-4614.4763344,0.00027166,2]
[363252070,1748649043747,-2200.9280315,0.00027166,2]
[363252071,1748649043756,-794.84520634,0.00027166,2]
[363252072,1748649043766,-596.3483329,0.00027166,2]
[363252073,1748649043775,-533.0458729,0.00027166,2]
[363252074,1748649043784,-500.0,0.0002717,2]